bitfinex-derivatives/quotes_ETHF0:USTF0_20250904
["timestamp","ask_amount","ask_price","bid_price","bid_amount"]
[1757017455375,1.0011,4304.1,4304.0,0.2906]
[1757017455681,1.0011,4304.1,4304.0,0.7023]
[1757017456376,1.0011,4304.1,4304.0,0.9932]
[1757017456578,0.7172,4304.1,4304.0,1.41136]
[1757017456876,0.278,4304.2,4304.1,0.5815]
[1757017457180,0.7172,4304.2,4304.1,0.5815]
[1757017457480,0.7172,4304.2,4304.1,0.9932]
[1757017457883,1.0011,4304.2,4304.1,0.9932]
[1757017458482,0.278,4304.2,4304.1,1.41135]
[1757017458782,0.6932,4304.3,4304.2,1.37434]
[1757017459084,3.6288,4305.2,4305.1,1.37426]
[1757017459376,3.901,4305.2,4305.1,3.69946]
[1757017459581,3.901,4305.2,4305.1,1.37426]
[1757017459979,3.901,4305.2,4305.1,0.9562]
[1757017460174,3.901,4305.2,4305.1,1.37426]
[1757017460578,4.1637,4305.2,4304.7,3.6056]
[1757017460883,0.9559,4304.7,4304.6,1.1942]
[1757017461077,0.9559,4304.7,4304.6,0.9562]
[1757017461286,0.6932,4304.7,4304.6,1.37431]
[1757017461779,0.2722,4305.0,4304.9,1.37428]
[1757017462081,0.2722,4305.2,4305.1,0.9562]
[1757017462275,0.1641,4305.5,4305.1,0.5584]
[1757017462476,0.699,4305.5,4305.4,0.5584]
[1757017462671,0.699,4305.5,4305.4,0.2897]
[1757017462878,0.699,4305.5,4305.1,0.3978]
[1757017463079,0.9559,4305.4,4305.3,2.3252]
[1757017463483,0.9559,4305.4,4305.3,0.2897]
[1757017465581,0.238,4305.7,4305.0,0.1649]
[1757017465885,0.9559,4305.4,4305.3,3.4975]
[1757017466482,0.9559,4305.4,4305.3,4.164]
[1757017467285,0.9559,4305.4,4305.3,0.9562]
[1757017475085,0.6932,4305.7,4305.6,0.5584]
[1757017475390,0.9559,4305.7,4305.6,0.5584]
[1757017475790,0.9559,4305.7,4305.6,0.9562]
[1757017476888,0.9559,4305.7,4305.6,1.24046862]
[1757017478394,3.2078,4306.1,4305.6,0.84266862]
[1757017478594,0.9559,4307.4,4307.3,0.9562]
[1757017478801,0.5349,4306.9,4306.8,0.238]
[1757017478994,0.9559,4306.9,4306.8,0.57378598]
[1757017479294,0.9559,4306.9,4306.8,0.28408598]
[1757017479891,0.9755102,4306.9,4306.8,0.28408598]
[1757017480898,0.97787905,4306.9,4306.8,0.28408598]
[1757017481299,0.9802479,4306.9,4306.8,0.28408598]
[1757017482902,0.9802479,4306.9,4306.8,0.57378598]
[1757017483196,0.9559,4306.9,4306.8,0.28408598]
[1757017483399,0.98261675,4306.9,4306.8,0.28408598]
[1757017484292,0.9849856,4306.9,4306.8,0.28408598]
[1757017484798,4.9849856,4306.9,4306.8,0.28408598]
[1757017484998,0.5349,4306.0,4305.9,0.9562]
[1757017485198,0.9559,4306.0,4305.9,0.9562]
[1757017485394,0.98735445,4306.0,4305.9,3.2814]
[1757017486402,0.9897233,4306.0,4305.9,3.2814]
[1757017488004,1.00724581,4306.0,4305.9,3.2814]
[1757017488306,0.32354581,4306.0,4305.9,3.2814]
[1757017488504,0.05134581,4306.0,4305.9,3.2814]
[1757017490906,0.05134581,4306.0,4305.9,3.69939]
[1757017491908,0.05134581,4306.0,4305.9,3.93739]
[1757017492604,0.05134581,4306.0,4305.9,1.61219]
[1757017493107,0.05134581,4306.0,4305.9,3.93739]
[1757017494109,0.4038,4307.2,4306.9,0.41789]
[1757017494298,0.6906,4307.1,4307.0,1.1255]
[1757017494506,0.5392,4307.3,4307.2,1.37987]
[1757017494698,0.5392,4307.3,4307.2,3.70507]
[1757017494902,0.5738,4307.3,4307.2,0.962]
[1757017495108,0.9776,4307.3,4307.2,0.962]
[1757017495310,0.9776,4307.3,4307.2,1.37987]
[1757017495512,0.9776,4307.3,4307.2,0.962]
[1757017497406,0.9776,4307.3,4307.0,0.4015]
[1757017497407,0.9776,4307.3,4306.9,3.6128]
[1757017497615,0.9776,4307.2,4307.1,2.6014]
[1757017497799,0.9776,4307.2,4307.1,3.0064]
[1757017498005,0.9776,4307.2,4307.1,0.6812]
[1757017498207,0.9776,4307.2,4307.1,0.962]
[1757017500616,0.9776,4307.2,4307.1,1.37988]
[1757017500913,0.2868,4307.2,4307.1,1.37988]
[1757017501918,0.9776,4307.2,4307.1,0.962]
[1757017502717,0.8257,4307.5,4307.4,0.557]
[1757017502910,1.5165,4307.5,4307.4,0.962]
[1757017503111,0.2868,4307.5,4307.4,0.962]
[1757017503617,0.2868,4307.5,4307.4,3.70505]
[1757017503811,0.7826,4307.8,4307.7,0.557]
[1757017504013,0.9776,4307.8,4307.7,0.962]
[1757017504617,0.9776,4307.8,4307.7,1.37982]
[1757017505213,0.9776,4307.8,4307.7,0.962]
[1757017506016,0.9776,4307.8,4307.7,1.37982]
[1757017506615,0.5738,4307.8,4307.7,1.37982]
[1757017507017,0.5738,4307.8,4307.7,0.962]
[1757017507220,0.9776,4307.8,4307.7,0.962]
[1757017509922,0.2868,4307.8,4307.7,1.37982]
[1757017510113,0.9776,4307.8,4307.7,0.962]
[1757017510817,0.2868,4307.8,4307.7,3.2872]
[1757017511019,3.4946,4308.0,4307.9,0.962]
[1757017511619,0.2868,4308.0,4307.9,0.962]
[1757017511919,0.9776,4308.0,4307.9,0.962]
[1757017512918,1.1472,4308.0,4307.7,0.65482]
[1757017513124,1.1472,4308.0,4307.9,0.2762]
[1757017513419,0.9776,4308.0,4307.9,0.962]
[1757017514017,1.1472,4308.0,4307.6,0.41782]
[1757017514320,0.7434,4308.0,4307.9,0.2762]
[1757017514513,0.7434,4308.0,4307.9,0.6812]
[1757017514821,0.9776,4308.0,4307.9,0.962]
[1757017516611,0.5388,4308.1,4308.0,1.1255]
[1757017516814,0.5388,4308.1,4308.0,3.4507]
[1757017517019,3.2078,4308.5,4308.4,1.37975]
[1757017517215,0.5738,4308.9,4308.6,0.962]
[1757017517216,0.2868,4308.7,4308.6,0.962]
[1757017517616,0.9776,4308.7,4308.6,0.962]
[1757017518318,0.17,4308.9,4308.8,0.9489]
[1757017518521,0.17,4308.9,4308.8,3.2741]
[1757017518820,0.17,4308.9,4308.8,0.9489]
[1757017520114,0.8418,4308.9,4308.8,0.9489]
[1757017520316,1.1088,4308.9,4308.8,1.1859]
[1757017520715,0.3889,4308.8,4308.3,0.4116]
[1757017520917,0.9388,4308.4,4308.2,3.2078]
[1757017521114,0.9388,4308.3,4308.2,0.9489]
[1757017521514,0.9388,4308.3,4308.2,3.2741]
[1757017522223,0.5499,4308.3,4308.2,6.4819]
[1757017522424,0.5499,4308.4,4308.3,0.5373]
[1757017522717,0.5499,4308.4,4308.3,0.9489]
[1757017523116,0.9388,4308.4,4308.3,0.9489]
[1757017525613,0.9388,4308.4,4308.3,0.2564]
[1757017525812,0.9388,4308.4,4308.3,0.9489]
[1757017529824,0.9388,4308.4,4308.3,0.668]
[1757017530127,0.9388,4308.4,4308.3,0.2564]
[1757017530529,0.3889,4308.3,4307.6,3.2078]
[1757017530727,0.9388,4307.6,4307.5,1.36674]
[1757017530920,0.9388,4308.4,4308.3,0.2564]
[1757017531223,0.5499,4307.9,4307.8,2.5816]
[1757017531428,0.9388,4307.9,4307.8,0.668]
[1757017532024,0.9388,4307.9,4307.8,0.9489]
[1757017537327,0.9388,4307.9,4306.6,3.2078]
[1757017537328,0.5499,4307.3,4306.6,3.2078]
[1757017537522,0.2829,4306.8,4306.7,0.9489]
[1757017537722,0.2829,4306.8,4306.7,3.2741]
[1757017537923,0.9388,4306.8,4306.7,3.2741]
[1757017538123,0.9388,4306.8,4306.7,2.8625]
[1757017538324,0.9388,4306.8,4306.7,3.2741]
[1757017541027,0.9388,4306.8,4306.7,2.5816]
[1757017542832,0.9388,4306.8,4306.7,0.2564]
[1757017543224,0.9388,4306.8,4306.1,3.2078]
[1757017543534,0.9388,4306.8,4306.6,2.3252]
[1757017543833,0.9388,4306.7,4306.6,2.3252]
[1757017544032,0.5499,4306.7,4306.1,3.2078]
[1757017544233,0.9388,4306.7,4306.6,2.5816]
[1757017544532,0.9388,4306.7,4306.6,2.9932]
[1757017544834,0.9388,4306.7,4306.6,0.668]
[1757017545832,0.9388,4306.7,4306.6,0.9489]
[1757017548931,0.237,4306.9,4306.8,0.5485]
[1757017549232,0.4968,4306.9,4306.8,3.2529]
[1757017549432,0.4968,4306.9,4306.8,0.9277]
[1757017549636,0.237,4306.9,4306.8,0.9277]
[1757017550437,0.4968,4306.9,4306.8,0.9277]
[1757017552239,0.8999,4306.9,4306.8,0.9277]
[1757017552436,1.1664,4306.9,4306.8,0.9277]
[1757017555735,0.7633,4306.9,4306.2,0.3792]
[1757017555936,0.9294,4306.3,4306.2,0.9277]
[1757017556442,0.9294,4306.3,4306.2,3.2529]
[1757017558139,0.2598,4306.3,4306.2,3.2529]
[1757017558940,1.0453,4307.2,4307.1,0.9277]
[1757017559140,0.1159,4307.2,4307.1,4.55336]
[1757017559347,0.1159,4307.2,4307.1,4.78553]
[1757017559649,0.6629,4308.1,4308.0,0.5485]
[1757017559947,0.6629,4308.1,4308.0,0.9277]
[1757017560241,0.6629,4308.1,4308.0,1.0947]
[1757017560448,0.9294,4308.1,4308.0,0.9277]
[1757017560842,0.9490018,4308.1,4308.0,0.9277]
[1757017561945,0.96860551,4308.1,4308.0,0.9277]
[1757017562940,0.98820922,4308.1,4308.0,0.9277]
[1757017563145,0.98820922,4308.1,4308.0,1.0947]
[1757017563747,1.00781484,4308.1,4308.0,0.9277]
[1757017564835,0.09799224,4308.1,4308.0,0.9277]
[1757017565041,0.09799224,4308.1,4308.0,1.0947]
[1757017565042,0.35779224,4308.1,4308.0,1.0947]
[1757017565239,0.37736978,4308.1,4308.0,1.0947]
[1757017565441,0.11756978,4308.1,4308.0,1.0947]
[1757017565741,0.407,4308.9,4308.8,0.5485]
[1757017565943,1.3364,4308.9,4308.8,0.9277]
[1757017566145,1.3364,4308.9,4308.3,0.6162]
[1757017566346,0.9294,4308.4,4308.3,2.8737]
[1757017566746,0.407,4308.9,4308.3,0.5485]
[1757017567049,0.9294,4308.8,4308.7,0.6557]
[1757017567248,0.9294,4308.8,4308.7,0.9277]
[1757017571043,0.9294,4308.8,4308.2,3.2078]
[1757017571244,0.9294,4308.3,4308.2,3.8635]
[1757017571548,0.9294,4308.3,4308.2,4.1355]
[1757017571751,0.9294,4308.3,4308.2,6.4607]
[1757017573648,1.0699,4308.9,4308.8,0.5485]
[1757017573847,1.3364,4308.9,4308.8,0.9277]
[1757017576056,1.3364,4308.9,4308.8,0.2765]
[1757017577249,1.3364,4308.9,4308.5,0.3792]
[1757017577548,0.5263,4308.6,4308.5,2.9809]
[1757017577755,0.5451,4308.5,4308.2,3.2078]
[1757017577952,0.9147,4308.3,4308.2,3.8529]
[1757017578148,0.9147,4308.3,4308.2,4.1159]
[1757017578545,0.9147,4308.3,4308.2,6.4411]
[1757017579455,0.2717,4308.3,4308.2,6.4411]
[1757017579658,0.9147,4308.8,4308.7,0.2646]
[1757017579857,0.9147,4308.8,4308.4,2.7057]
[1757017580054,0.6998,4308.5,4308.4,2.9703]
[1757017580253,1.0798,4308.5,4308.4,2.9703]
[1757017580554,0.9147,4308.5,4308.4,3.2333]
[1757017582650,0.9147,4308.5,4308.4,0.9081]
[1757017583051,0.9147,4308.5,4308.4,3.2333]
[1757017584557,1.0798,4308.5,4308.4,2.9703]
[1757017585161,0.9147,4308.5,4308.4,3.2333]
[1757017587151,1.0798,4308.5,4308.4,3.2333]
[1757017589957,1.0798,4308.5,4308.4,0.9081]
[1757017590152,0.9147,4307.9,4307.8,0.9081]
[1757017590364,0.38,4307.8,4307.2,3.2078]
[1757017590561,0.6517,4307.3,4307.2,0.5276]
[1757017591261,0.38,4307.3,4307.2,2.8528]
[1757017592067,0.6517,4307.3,4307.2,2.8528]
[1757017592256,0.6517,4307.3,4307.2,3.2333]
[1757017592657,0.38,4307.3,4307.2,3.2333]
[1757017592965,0.38,4307.4,4307.3,0.9081]
[1757017593164,0.38,4307.4,4307.3,3.2333]
[1757017593368,0.38,4307.4,4307.3,0.9081]
[1757017595754,0.1651,4308.0,4307.3,4.1159]
[1757017595956,0.1651,4308.0,4307.0,0.237]
[1757017595957,0.38,4308.5,4308.4,0.9081]
[1757017596266,0.55,4308.9,4308.8,0.9081]
[1757017596466,0.8217,4308.9,4308.8,3.2333]
[1757017596766,0.8217,4308.9,4308.8,0.9081]
[1757017596961,0.55,4308.9,4308.8,0.9081]
[1757017597162,0.17,4308.9,4308.8,0.9081]
[1757017600059,0.55,4308.9,4308.8,0.9081]
[1757017601068,0.55,4308.9,4308.8,4.1159]
[1757017601659,0.17,4308.9,4308.8,4.1159]
[1757017603068,0.17,4308.9,4308.8,4.53359]
[1757017604963,0.55,4308.9,4308.8,4.1159]
[1757017606259,0.55,4308.9,4308.8,4.53359]
[1757017606463,0.55,4308.9,4308.8,4.1159]
[1757017606772,0.55,4308.9,4308.8,4.3529]
[1757017606963,0.55,4308.9,4308.8,4.77059]
[1757017608771,0.17,4308.9,4308.8,4.77059]
[1757017611877,0.5624,4308.9,4308.8,4.77059]
[1757017612171,0.17,4308.9,4308.8,4.77059]
[1757017612373,0.5624,4308.9,4308.8,4.77059]
[1757017614475,0.1483,4308.5,4308.2,3.2078]
[1757017614664,0.8836,4308.3,4308.2,5.7899]
[1757017614867,0.89651087,4308.3,4308.2,6.0467]
[1757017615468,0.89651087,4308.3,4308.2,6.2837]
[1757017616076,0.89651087,4308.3,4308.2,6.0467]
[1757017616476,0.65021087,4308.3,4308.2,6.4164]
[1757017616872,0.01291087,4308.3,4308.2,6.4164]
[1757017618679,0.01291087,4308.3,4308.2,6.83415]
[1757017620967,0.01291087,4308.3,4308.2,7.07115]
[1757017625578,0.17,4308.9,4308.8,0.93139]
[1757017625773,0.17,4308.9,4308.8,4.74589]
[1757017626376,0.5624,4308.9,4308.8,4.74589]
[1757017627580,0.17,4308.9,4308.8,4.74589]
[1757017628678,0.5624,4308.9,4308.8,4.50889]
[1757017628884,0.5624,4308.9,4308.8,4.74589]
[1757017629274,0.17,4308.9,4308.8,4.74589]
[1757017632084,0.17,4308.9,4308.8,45.54589]
[1757017632988,0.17,4308.9,4308.8,45.1282]
[1757017633283,0.5624,4308.9,4308.8,45.54589]
[1757017633785,0.5624,4308.9,4308.8,4.74589]
[1757017635788,0.5624,4308.9,4308.8,4.3282]
[1757017635990,0.5624,4308.9,4308.8,4.74589]
[1757017636286,0.17,4308.9,4308.8,4.74589]
[1757017638183,0.5695,4308.9,4308.8,4.74589]
[1757017638385,0.00685926,4309.7,4309.6,0.7377]
[1757017638689,0.40635926,4309.7,4309.6,3.2999]
[1757017638890,0.40635926,4309.7,4309.6,0.9747]
[1757017639279,0.40635926,4309.7,4309.6,0.7377]
[1757017639491,0.66145926,4309.7,4309.6,0.7657]
[1757017639788,0.90925926,4309.7,4309.6,0.2621]
[1757017640088,0.3995,4309.1,4309.0,0.7377]
[1757017640287,0.3995,4309.1,4309.0,1.15537]
[1757017640490,0.3995,4309.1,4309.0,3.71757]
[1757017641290,0.4048,4309.5,4309.4,0.5287]
[1757017641482,0.4048,4309.5,4309.4,4.1825]
[1757017641883,0.5492,4309.5,4309.4,6.5077]
[1757017642190,0.8043,4309.5,4309.4,6.5077]
[1757017642890,0.8043,4309.5,4309.4,4.1825]
[1757017643091,0.8043,4309.5,4309.4,6.5077]
[1757017644288,0.3995,4309.5,4309.4,6.5077]
[1757017644489,0.8043,4309.5,4309.4,6.5077]
[1757017644684,0.3995,4309.5,4309.4,6.5077]
[1757017645290,0.8043,4309.5,4309.4,6.5077]
[1757017645486,1.0521,4309.5,4309.4,6.2987]
[1757017645692,1.0521,4309.5,4309.4,3.9735]
[1757017648093,0.5492,4309.5,4309.4,4.1825]
[1757017648597,0.8043,4309.5,4309.4,4.1825]
[1757017648892,0.8043,4309.5,4309.4,3.9735]
[1757017650000,0.8043,4309.5,4309.4,4.1825]
[1757017650400,0.8043,4309.5,4309.4,3.9735]
[1757017650601,1.0521,4309.5,4309.4,3.9735]
[1757017651100,1.0521,4309.5,4309.4,3.7365]
[1757017651296,1.0521,4309.5,4309.4,3.4448]
[1757017652195,1.0521,4309.5,4309.4,3.7069]
[1757017652390,1.0521,4309.5,4309.4,0.4991]
[1757017653392,0.6526,4309.5,4308.9,3.2078]
[1757017653596,1.0521,4309.0,4308.9,3.4699]
[1757017653795,1.0521,4309.0,4308.9,3.9735]
[1757017654104,1.0521,4309.0,4308.9,6.2987]
[1757017654920,0.8043,4308.5,4308.4,3.7365]
[1757017655121,0.8043,4308.5,4308.4,3.9735]
[1757017655318,0.8043,4308.5,4308.4,6.2987]
[1757017656714,0.8043,4308.5,4308.4,6.5032]
[1757017659220,0.8043,4308.5,4308.4,6.2987]
[1757017659622,0.8043,4308.5,4308.4,6.0617]
[1757017659819,0.8043,4308.0,4307.9,3.7365]
[1757017660023,0.8043,4308.0,4307.9,3.941]
[1757017660225,0.8043,4308.0,4307.9,0.2621]
[1757017660226,1.0521,4308.0,4307.9,0.2621]
[1757017660420,0.4048,4307.5,4307.4,3.4699]
[1757017660628,0.8043,4307.5,4307.4,4.178]
[1757017660927,1.0521,4307.5,4307.4,6.2987]
[1757017661319,1.0521,4307.5,4307.4,6.0617]
[1757017661519,1.0521,4307.5,4307.4,6.2987]
[1757017662016,1.0521,4307.5,4307.4,3.4448]
[1757017662327,1.0521,4307.5,4307.4,3.2078]
[1757017662625,0.3995,4307.4,4307.1,0.237]
[1757017662926,0.9024,4307.2,4307.1,0.2621]
[1757017663331,0.9024,4307.2,4306.9,3.2078]
[1757017663332,0.6526,4307.0,4306.9,3.4699]
[1757017663524,1.0521,4307.0,4306.9,3.7069]
[1757017663721,1.0521,4307.0,4306.9,3.9735]
[1757017666229,1.0521,4307.0,4306.9,3.4699]
[1757017666827,0.1497,4306.5,4306.4,3.2078]
[1757017667029,0.8043,4306.5,4306.4,3.9735]
[1757017667225,0.8043,4306.5,4306.4,6.2987]
[1757017667426,0.8043,4306.5,4306.4,3.9735]
[1757017667827,0.8043,4306.5,4306.4,6.2987]
[1757017669325,0.8043,4306.5,4306.4,6.4954]
[1757017670132,0.1497,4307.0,4306.5,0.1967]
[1757017670331,0.4081,4307.0,4306.9,0.4955]
[1757017670533,0.6458,4307.0,4306.9,0.4955]
[1757017670733,1.0385,4307.0,4306.9,0.4955]
[1757017672131,1.0385,4307.0,4306.4,3.7033]
[1757017672132,1.0331,4306.5,4306.4,3.7033]
[1757017672326,1.0331,4306.5,4306.4,0.4955]
[1757017673432,1.0331,4306.5,4306.4,0.2537]
[1757017673631,1.0331,4306.5,4306.1,0.237]
[1757017673930,0.6404,4306.0,4305.9,3.7033]
[1757017674126,1.0331,4306.0,4305.9,3.7033]
[1757017674328,1.0331,4306.0,4305.9,6.0285]
[1757017676737,0.7954,4306.0,4305.9,6.0285]
[1757017677039,0.3927,4306.0,4305.9,6.2252]
[1757017677229,0.7954,4306.0,4305.9,3.7033]
[1757017677433,1.0331,4306.0,4305.9,3.7033]
[1757017685246,0.3927,4306.4,4305.9,6.0285]
[1757017685448,0.7954,4306.5,4306.4,0.4955]
[1757017685646,1.0331,4306.5,4306.4,0.4955]
[1757017685851,0.537,4306.5,4306.4,2.8207]
[1757017686055,0.3927,4306.9,4306.8,0.4955]
[1757017686346,0.3927,4306.9,4306.8,0.6922]
[1757017688545,0.3927,4307.4,4306.8,0.7325]
[1757017688750,0.6511,4307.4,4307.3,0.6922]
[1757017689046,0.3927,4307.4,4307.3,0.6922]
[1757017689246,1.0331,4307.0,4306.9,3.4615]
[1757017689446,1.0331,4307.0,4306.6,0.237]
[1757017689652,0.3927,4307.0,4306.9,0.6922]
[1757017689950,0.6511,4307.4,4307.3,0.4955]
[1757017690145,0.3927,4307.4,4307.3,0.6922]
[1757017692256,0.6511,4307.4,4307.3,0.6922]
[1757017692656,0.6511,4307.4,4307.3,0.4955]
[1757017693457,0.6511,4307.4,4307.3,0.6922]
[1757017694759,0.3927,4307.4,4307.3,0.6922]
[1757017694954,0.6511,4307.4,4307.3,0.6922]
[1757017695459,0.3927,4307.3,4307.1,3.2078]
[1757017695648,0.4961,4307.2,4307.1,3.2078]
[1757017695847,0.1443,4307.0,4306.5,3.2078]
[1757017696054,0.8888,4306.9,4306.8,2.8207]
[1757017696259,0.8888,4306.9,4306.8,0.4955]
[1757017697463,0.3927,4306.9,4306.8,0.6922]
[1757017697664,0.8888,4306.9,4306.8,0.4955]
[1757017698258,0.8888,4306.9,4306.5,3.4448]
[1757017698464,0.4961,4306.9,4306.5,3.4448]
[1757017698762,0.8786,4306.6,4306.5,3.6824]
[1757017699270,0.8786,4306.6,4306.5,3.2078]
[1757017699467,0.249,4306.1,4306.0,3.6917]
[1757017699767,0.6213,4306.1,4306.0,3.9287]
[1757017700068,0.8786,4306.1,4306.0,6.0169]
[1757017700262,0.8786,4306.1,4306.0,3.2078]
[1757017700466,0.6213,4306.1,4306.0,3.6917]
[1757017700768,0.6213,4306.1,4306.0,3.8744]
[1757017702869,0.6213,4306.1,4306.0,3.6917]
[1757017703571,0.6213,4306.1,4306.0,3.8744]
[1757017703572,0.3723,4306.1,4306.0,3.8744]
[1757017703770,0.6213,4306.1,4306.0,3.6917]
[1757017704672,0.1529,4306.5,4306.1,0.1827]
[1757017704869,0.6592,4306.5,4306.4,0.4839]
[1757017705072,0.6592,4306.5,4306.4,0.2376]
[1757017705260,1.0315,4306.5,4306.4,0.2376]
[1757017707077,1.0315,4306.5,4306.4,0.4839]
[1757017707968,1.0315,4306.5,4306.4,2.8091]
[1757017708169,0.3723,4307.5,4307.4,0.6666]
[1757017708369,0.3723,4307.9,4307.4,6.85442]
[1757017708566,0.6213,4307.9,4307.8,2.3252]
[1757017708762,0.8786,4307.9,4307.8,2.8091]
[1757017708968,0.8786,4307.9,4307.8,0.4839]
[1757017709163,1.0315,4307.5,4307.4,3.4454]
[1757017709369,1.0315,4307.5,4307.4,3.6917]
[1757017709575,1.0315,4307.5,4307.4,5.7706]
[1757017710372,1.0315,4307.5,4307.4,6.0169]
[1757017713372,1.0315,4307.5,4307.4,5.7706]
[1757017713573,1.0315,4307.5,4307.4,6.0169]
[1757017715369,0.1529,4307.0,4306.9,3.2078]
[1757017715567,1.0315,4307.0,4306.9,3.9287]
[1757017715768,1.0315,4307.0,4306.9,6.2539]
[1757017715978,0.5252,4307.0,4306.9,6.4366]
[1757017717878,0.6213,4307.4,4307.3,0.6666]
[1757017718080,0.6213,4307.4,4307.3,0.4839]
[1757017718377,0.3723,4307.4,4307.3,0.6666]
[1757017718578,3.2078,4308.2,4307.3,1.08444]
[1757017718778,0.6213,4307.9,4307.8,0.4839]
[1757017719177,0.8786,4307.9,4307.8,0.4839]
[1757017720477,0.8786,4307.9,4307.8,0.2376]
[1757017720981,0.8786,4307.9,4307.8,0.4839]
[1757017722082,3.8291,4308.2,4308.1,0.4839]
[1757017722281,0.6213,4308.2,4308.1,0.4839]
[1757017723777,0.8786,4308.2,4308.1,0.4839]
[1757017730178,0.39,4307.5,4307.4,3.9455]
[1757017730380,0.759,4307.5,4307.4,4.17763]
[1757017730579,0.9994,4307.5,4307.4,6.2707]
[1757017730774,0.9994,4307.5,4307.4,6.68853]
[1757017730985,0.9994,4307.5,4307.4,6.85833]
[1757017731186,0.9994,4307.5,4307.4,6.2707]
[1757017731684,0.9994,4307.5,4307.4,5.533]
[1757017731880,0.9994,4307.5,4307.4,3.2078]
[1757017732080,0.9994,4307.0,4306.9,3.4606]
[1757017732475,0.9994,4307.0,4306.9,5.7858]
[1757017732679,0.9994,4307.0,4306.9,3.2078]
[1757017732886,0.9994,4307.0,4306.9,2.3252]
[1757017735290,0.9994,4307.0,4306.4,3.4438]
[1757017735489,0.369,4306.9,4306.8,2.3252]
[1757017735783,0.8507,4306.9,4306.8,2.3252]
[1757017735985,0.759,4306.5,4306.4,3.9455]
[1757017736382,0.759,4306.5,4306.4,6.2707]
[1757017736987,0.9994,4306.5,4306.4,5.7858]
[1757017737285,0.9994,4306.5,4306.4,3.4606]
[1757017738190,0.9994,4306.5,4306.4,3.7095]
[1757017739889,0.9994,4306.5,4306.4,3.4606]
[1757017740089,0.9994,4306.5,4306.4,0.2528]
[1757017740690,0.9994,4306.5,4306.4,0.5017]
[1757017752599,0.7177,4307.2,4307.1,0.2528]
[1757017752798,0.7177,4307.2,4307.1,0.5971]
[1757017753201,0.4817,4307.2,4307.1,0.846]
[1757017753496,0.236,4307.4,4307.1,0.846]
[1757017753700,0.2413,4307.3,4307.2,0.846]
[1757017755092,0.4817,4307.3,4307.2,0.3443]
[1757017755403,0.8367,4307.3,4307.2,0.3443]
[1757017755895,0.355,4307.2,4307.0,0.3443]
[1757017756089,0.4817,4307.1,4307.0,0.3443]
[1757017756292,0.8367,4307.1,4307.0,0.3443]
[1757017756497,0.8367,4307.1,4307.0,0.5971]
[1757017758003,0.8367,4307.1,4307.0,0.9837]
[1757017762107,0.8367,4307.1,4307.0,0.3443]
[1757017762415,0.8687,4306.5,4306.4,3.5641]
[1757017762605,0.8687,4306.5,4306.4,0.3594]
[1757017763203,1.0002,4306.5,4306.1,0.3594]
[1757017763411,0.236,4306.6,4306.5,0.7565]
[1757017763816,0.236,4306.6,4306.5,0.9938]
[1757017764506,0.236,4306.6,4306.5,0.5087]
[1757017764805,0.236,4306.6,4306.5,0.7565]
[1757017766113,0.236,4306.6,4306.5,0.9938]
[1757017769917,0.236,4306.6,4306.5,0.7565]
[1757017770316,0.236,4306.6,4306.5,0.9938]
[1757017778226,0.1464,4306.6,4306.5,0.9938]
[1757017778715,0.236,4306.7,4306.6,0.8445]
[1757017778920,3.2078,4306.9,4306.7,0.3594]
[1757017778921,0.236,4306.8,4306.7,0.3594]
[1757017779226,0.236,4306.8,4306.7,0.8445]
[1757017780121,0.6677,4307.0,4306.7,0.8445]
[1757017780428,0.4317,4307.0,4306.9,0.8445]
[1757017780821,0.236,4307.2,4307.1,0.8445]
[1757017781526,3.2078,4307.5,4307.1,0.8445]
[1757017781828,0.236,4307.4,4307.2,0.3594]
[1757017782122,0.236,4307.4,4307.3,0.8445]
[1757017788034,0.4316,4307.8,4307.3,0.8445]
[1757017788235,0.4316,4307.8,4307.7,0.842]
[1757017788434,0.236,4307.8,4307.7,0.842]
[1757017790045,0.236,4307.8,4307.7,0.5954]
[1757017790248,0.8248,4307.1,4307.0,0.0381]
[1757017790444,0.4709,4307.1,4307.0,0.4295]
[1757017791948,0.8201,4307.1,4307.0,0.4295]
[1757017792144,3.6392,4307.4,4307.0,0.4295]
[1757017792340,3.6392,4307.4,4307.3,0.4902]
[1757017792540,3.6392,4307.4,4307.3,0.842]
[1757017793546,0.236,4307.5,4307.4,0.3518]
[1757017793749,0.4709,4307.5,4307.4,0.842]
[1757017795244,0.236,4307.5,4307.4,0.842]
[1757017796447,0.4709,4307.5,4307.4,0.842]
[1757017796645,1.0608,4307.5,4307.4,0.842]
[1757017797747,1.0608,4307.5,4306.9,3.2078]
[1757017797748,1.201,4307.5,4306.9,3.2078]
[1757017798051,0.8248,4307.0,4306.9,3.698]
[1757017798453,0.8248,4307.0,4306.9,4.0498]
[1757017799749,0.965,4307.0,4306.9,3.698]
[1757017800049,0.965,4307.0,4306.9,0.5954]
[1757017800455,0.8248,4307.0,4306.9,0.842]
[1757017800641,1.201,4307.0,4306.6,0.3518]
[1757017800846,0.8248,4306.5,4306.4,3.698]
[1757017801249,0.8248,4306.5,4306.4,0.4902]
[1757017801448,0.8248,4306.5,4306.4,0.842]
[1757017802952,0.3762,4307.0,4306.5,0.1448]
[1757017803255,0.8518,4307.0,4306.9,0.5954]